fUST/lending_fUST_20260114
["ID","MTS","AMOUNT","RATE_DAILY","PERIOD"]
[401890646,1768397440645,-790.22137297,0.00012329,2]
[401890648,1768397440655,-790.22137297,0.00012329,2]
[401890650,1768397440664,-790.22137297,0.00012329,2]
[401890652,1768397440674,-790.22137297,0.00012329,2]
[401890653,1768397440683,-790.22137297,0.00012329,2]
[401890655,1768397440693,-790.22137297,0.00012329,2]
[401890657,1768397440704,-790.22137297,0.00012329,2]
[401890660,1768397440714,-790.22137297,0.00012329,2]
[401890662,1768397440724,-790.22137297,0.00012329,2]
[401890663,1768397440734,-790.22137297,0.00012329,2]
[401890666,1768397440746,-790.22137297,0.00012329,2]
[401890668,1768397440756,-790.22137297,0.00012329,2]
[401890670,1768397440766,-790.22137297,0.00012329,2]
[401890672,1768397440776,-790.22137297,0.00012329,2]
[401890673,1768397440786,-790.22137297,0.00012329,2]
[401890675,1768397440796,-790.22137297,0.00012329,2]
[401890677,1768397440807,-790.22137297,0.00012329,2]
[401890679,1768397440817,-790.22137297,0.00012329,2]
[401890681,1768397440828,-790.22137297,0.00012329,2]
[401890683,1768397440838,-1610.47856341,0.00012329,2]
[401890685,1768397440848,-1610.47856341,0.00012329,2]
[401890687,1768397440858,-1610.47856341,0.00012329,2]
[401890689,1768397440869,-1610.47856341,0.00012329,2]
[401890691,1768397440878,-1610.47856341,0.00012329,2]
[401890693,1768397440888,-1610.47856341,0.00012329,2]
[401890695,1768397440898,-1610.47856341,0.00012329,2]
[401890697,1768397440910,-1610.47856341,0.00012329,2]
[401890699,1768397440920,-1610.47856341,0.00012329,2]
[401890701,1768397440930,-1610.47856341,0.00012329,2]
[401890703,1768397440941,-1610.47856341,0.00012329,2]
[401890705,1768397440951,-1610.47856341,0.00012329,2]
[401890707,1768397440961,-1610.47856341,0.00012329,2]
[401890709,1768397440972,-1610.47856341,0.00012329,2]
[401890711,1768397440983,-1610.47856341,0.00012329,2]
[401890713,1768397440993,-1610.47856341,0.00012329,2]
[401890715,1768397441004,-1610.47856341,0.00012329,2]
[401890717,1768397441014,-1610.47856341,0.00012329,2]
[401890719,1768397441026,-1610.47856341,0.00012329,2]
[401890721,1768397441037,-1610.47856341,0.00012329,2]
[401890723,1768397441047,-1610.47856341,0.00012329,2]
[401890726,1768397441059,-1610.47856341,0.00012329,2]
[401890728,1768397441070,-1610.47856341,0.00012329,2]
[401890730,1768397441081,-1610.47856341,0.00012329,2]
[401890731,1768397441091,-1610.47856341,0.00012329,2]
[401890734,1768397441102,-1610.47856341,0.00012329,2]
[401890736,1768397441112,-1610.47856341,0.00012329,2]
[401890738,1768397441123,-1610.47856341,0.00012329,2]
[401890739,1768397441133,-1610.47856341,0.00012329,2]
[401890742,1768397441144,-1610.47856341,0.00012329,2]
[401890744,1768397441163,-1610.47856341,0.00012329,2]
[401890747,1768397441181,-1610.47856341,0.00012329,2]
[401890750,1768397441197,-1610.47856341,0.00012329,2]
[401890751,1768397441209,-1610.47856343,0.00012329,2]
[401890753,1768397441224,-1610.47856343,0.00012329,2]
[401890756,1768397441237,-1610.47856343,0.00012329,2]
[401890758,1768397441252,-3613.769284,0.00012356,2]
[401890760,1768397441266,-1500.0,0.00012384,2]
[401890763,1768397441279,-4137.0438991,0.0001239,2]
[401890765,1768397441294,-959.88963038,0.00012413,2]
[401890768,1768397441309,-3522.5668425,0.000125,2]
[401890770,1768397441323,-886.84726131,0.0001252,2]
[401890772,1768397441338,-151.0,0.000126,2]
[401890774,1768397441351,-151.88,0.00012603,2]
[401890777,1768397441365,-1298.53616468,0.00012644,2]
[401890779,1768397441379,-823.0,0.00012703,2]
[401890781,1768397441393,-823.0,0.00012703,2]
[401890784,1768397441404,-3292.0,0.00012703,2]
[401890786,1768397441417,-806.340919,0.00012827,2]
[401890788,1768397441429,-194.2006467,0.00012877,2]
[401890790,1768397441442,-194.2006467,0.00012877,2]
[401890793,1768397441456,-151.89,0.00012877,2]
[401890795,1768397441470,-151.0,0.000129,2]
[401890797,1768397441484,-1323.6172376,0.00012943,2]
[401890800,1768397441500,-1000.0,0.00012973,2]
[401890802,1768397441515,-3200.0,0.00013,2]
[401890804,1768397441527,-246.05048425,0.00013,3]
[401890806,1768397441538,-4904.39770484,0.00013115,2]
[401890809,1768397441550,-3630.94490098,0.00013196,2]
[401890811,1768397441563,-151.0,0.000132,2]
[401890813,1768397441578,-1995.40633795,0.00013227,2]
[401890816,1768397441592,-4721.81328711,0.00013261,2]
[401890818,1768397441608,-500.0,0.00013273,2]
[401890820,1768397441620,-500.0,0.00013273,2]
[401890823,1768397441636,-501.85584568,0.00013273,2]
[401890825,1768397441650,-500.0,0.00013273,2]
[401890827,1768397441661,-500.0,0.00013273,2]
[401890829,1768397441673,-500.0,0.00013273,2]
[401890831,1768397441685,-500.0,0.00013273,2]
[401890833,1768397441697,-500.0,0.00013273,2]
[401890836,1768397441710,-533.7544997,0.00013273,2]
[401890838,1768397441724,-500.0,0.00013273,2]
[401890840,1768397441738,-500.21355158,0.00013273,2]
[401890842,1768397441751,-500.0,0.00013273,2]
[401890845,1768397441764,-500.0,0.00013273,2]
[401890847,1768397441781,-500.0,0.00013273,2]
[401890850,1768397441794,-162.00337471,0.00013273,2]
[401890851,1768397441807,-500.49098579,0.00013273,2]
[401890854,1768397441819,-500.18250774,0.00013273,2]
[401890855,1768397441832,-643.72416534,0.00013273,2]
[401890857,1768397441845,-500.0,0.00013273,2]
[401890860,1768397441857,-547.00656757,0.00013273,2]
[401890862,1768397441870,-500.0,0.00013273,2]
[401890864,1768397441882,-500.0,0.00013273,2]
[401890866,1768397441895,-500.0,0.00013273,2]
[401890869,1768397441907,-500.0,0.00013273,2]
[401890871,1768397441920,-500.0,0.00013273,2]
[401890873,1768397441932,-500.0,0.00013273,2]
[401890875,1768397441944,-500.0,0.00013273,2]
[401890877,1768397441957,-161.32472846,0.00013273,2]
[401890879,1768397441970,-500.0,0.00013273,2]
[401890881,1768397441982,-500.0,0.00013273,2]
[401890884,1768397441995,-316.29207451,0.00013273,2]
[401890886,1768397442007,-500.0,0.00013273,2]
[401890888,1768397442019,-500.0,0.00013273,2]
[401890890,1768397442031,-500.0,0.00013273,2]
[401890892,1768397442045,-500.0,0.00013273,2]
[401890895,1768397442056,-167.63409657,0.00013273,2]
[401890897,1768397442069,-500.0,0.00013273,2]
[401890899,1768397442082,-500.0,0.00013273,2]
[401890901,1768397442094,-500.0,0.00013273,2]
[401890904,1768397442106,-500.0,0.00013273,2]
[401890906,1768397442118,-500.0,0.00013273,2]
[401890908,1768397442131,-500.0,0.00013273,2]
[401890910,1768397442144,-261.59054001,0.00013273,2]
[401890912,1768397442156,-500.25674362,0.00013273,2]
[401890915,1768397442168,-500.0,0.00013273,2]
[401890917,1768397442180,-500.20354178,0.00013273,2]
[401890919,1768397442191,-500.0,0.00013273,2]
[401890921,1768397442204,-500.0,0.00013273,2]
[401890924,1768397442217,-500.0,0.00013273,2]
[401890926,1768397442229,-195.77760179,0.00013273,2]
[401890928,1768397442241,-500.28056306,0.00013273,2]
[401890930,1768397442254,-500.0,0.00013273,2]
[401890932,1768397442266,-500.0,0.00013273,2]
[401890934,1768397442279,-500.0,0.00013273,2]
[401890937,1768397442292,-500.0,0.00013273,2]
[401890939,1768397442304,-500.0,0.00013273,2]
[401890941,1768397442317,-500.0,0.00013273,2]
[401890943,1768397442329,-500.0,0.00013273,2]
[401890945,1768397442341,-500.0,0.00013273,2]
[401890947,1768397442354,-520.1094365,0.00013273,2]
[401890950,1768397442366,-185.624668,0.00013273,2]
[401890952,1768397442379,-151.0,0.000134,2]
[401890954,1768397442391,-838.67590186,0.00013544,2]
[401890956,1768397442403,-155.0,0.00013561,2]
[401890959,1768397442417,-2921.70637053,0.00013576,2]
[401890961,1768397442429,-300.0,0.00013673,2]
[401890963,1768397442441,-1000.0,0.00013698,2]
[401890965,1768397442452,-1000.0,0.00013698,2]
[401890967,1768397442464,-1000.0,0.00013698,2]
[401890970,1768397442477,-1000.0,0.00013698,2]
[401890972,1768397442488,-1000.0,0.00013698,2]
[401890974,1768397442500,-1000.0,0.00013698,2]
[401890976,1768397442512,-1000.0,0.00013698,2]
[401890979,1768397442524,-1017.75755303,0.00013698,2]
[401890981,1768397442537,-500.0,0.00013698,2]
[401890983,1768397442549,-500.0,0.00013698,2]
[401890985,1768397442561,-500.0,0.00013698,2]
[401890987,1768397442573,-500.0,0.00013698,2]
[401890989,1768397442585,-500.0,0.00013698,2]
[401890991,1768397442598,-518.87817295,0.00013698,2]
[401890994,1768397442614,-500.0,0.00013698,2]
[401890996,1768397442627,-500.0,0.00013698,2]
[401890998,1768397442641,-500.0,0.00013698,2]
[401891000,1768397442653,-500.0,0.00013698,2]
[401891003,1768397442666,-500.0,0.00013698,2]
[401891005,1768397442679,-500.0,0.00013698,2]
[401891007,1768397442692,-582.4382982,0.00013698,2]
[401891009,1768397442705,-500.0,0.00013698,2]
[401891013,1768397442717,-500.0,0.00013698,2]
[401891016,1768397442730,-500.0,0.00013698,2]
[401891019,1768397442742,-640.1566523,0.00013698,2]
[401891024,1768397442754,-500.0,0.00013698,2]
[401891029,1768397442767,-500.0,0.00013698,2]
[401891032,1768397442778,-500.0,0.00013698,2]
[401891035,1768397442790,-500.0,0.00013698,2]
[401891038,1768397442802,-500.0,0.00013698,2]
[401891040,1768397442813,-500.0,0.00013698,2]
[401891042,1768397442825,-636.78829679,0.00013698,2]
[401891045,1768397442838,-500.0,0.00013698,2]
[401891047,1768397442850,-500.0,0.00013698,2]
[401891049,1768397442863,-253.34510422,0.00013698,2]
[401891051,1768397442875,-800.23,0.00013698,2]
[401891053,1768397442887,-800.23,0.00013698,2]
[401891056,1768397442899,-800.23,0.00013698,2]
[401891058,1768397442911,-800.23,0.00013698,2]
[401891060,1768397442923,-800.23,0.00013698,2]
[401891062,1768397442936,-800.23,0.00013698,2]
[401891064,1768397442949,-800.23,0.00013698,2]
[401891067,1768397442961,-800.23,0.00013698,2]
[401891069,1768397442973,-800.23,0.00013698,2]
[401891071,1768397442984,-800.23,0.00013698,2]
[401891073,1768397442996,-800.23,0.00013698,2]
[401891075,1768397443008,-800.23,0.00013698,2]
[401891078,1768397443021,-800.23,0.00013698,2]
[401891080,1768397443032,-800.23,0.00013698,2]
[401891082,1768397443044,-800.23,0.00013698,2]
[401891084,1768397443056,-800.23,0.00013698,2]
[401891086,1768397443069,-800.23,0.00013698,2]
[401891088,1768397443081,-800.23,0.00013698,2]
[401891091,1768397443094,-800.23,0.00013698,2]
[401891093,1768397443106,-800.23,0.00013698,2]
[401891095,1768397443118,-800.23,0.00013698,2]
[401891097,1768397443130,-800.23,0.00013698,2]
[401891099,1768397443142,-800.23,0.00013698,2]
[401891101,1768397443155,-800.43872931,0.00013698,2]
[401891103,1768397443167,-500.0,0.00013698,2]
[401891106,1768397443180,-500.0,0.00013698,2]
[401891108,1768397443193,-633.96263391,0.00013698,2]
[401891110,1768397443205,-500.0,0.00013698,2]
[401891112,1768397443217,-500.0,0.00013698,2]
[401891113,1768397443229,-500.0,0.00013698,2]
[401891114,1768397443242,-453.8287473,0.00013698,2]
[401891115,1768397443253,-500.0,0.00013698,2]
[401891116,1768397443265,-500.0,0.00013698,2]
[401891117,1768397443278,-500.0,0.00013698,2]
[401891118,1768397443289,-500.0,0.00013698,2]
[401891119,1768397443301,-500.0,0.00013698,2]
[401891120,1768397443314,-500.0,0.00013698,2]
[401891121,1768397443327,-500.0,0.00013698,2]
[401891122,1768397443337,-500.0,0.00013698,2]
[401891123,1768397443347,-500.0,0.00013698,2]
[401891124,1768397443357,-500.0,0.00013698,2]
[401891125,1768397443367,-500.0,0.00013698,2]
[401891126,1768397443377,-500.0,0.00013698,2]
[401891151,1768397443691,-500.0,0.00013698,2]
[401891154,1768397443711,-500.0,0.00013698,2]
[401891157,1768397443729,-500.0,0.00013698,2]
[401891159,1768397443741,-500.0,0.00013698,2]
[401891161,1768397443751,-500.0,0.00013698,2]
[401891163,1768397443761,-500.0,0.00013698,2]
[401891165,1768397443771,-500.0,0.00013698,2]
[401891167,1768397443780,-516.10527878,0.00013698,2]
[401891169,1768397443791,-1460.52,0.00013698,2]
[401891171,1768397443802,-1460.52,0.00013698,2]
[401891173,1768397443813,-1460.52,0.00013698,2]
[401891175,1768397443822,-1460.52,0.00013698,2]
[401891177,1768397443832,-1460.52,0.00013698,2]
[401891179,1768397443842,-1460.52,0.00013698,2]
[401891181,1768397443851,-1460.52,0.00013698,2]
[401891183,1768397443862,-1460.52,0.00013698,2]
[401891185,1768397443872,-1460.52,0.00013698,2]
[401891187,1768397443883,-1460.52,0.00013698,2]
[401891189,1768397443894,-1460.52,0.00013698,2]
[401891191,1768397443904,-1460.52,0.00013698,2]
[401891193,1768397443914,-500.0,0.00013698,2]
[401891195,1768397443924,-500.0,0.00013698,2]
[401891197,1768397443934,-500.0,0.00013698,2]
[401891199,1768397443943,-500.0,0.00013698,2]
[401891201,1768397443953,-500.0,0.00013698,2]
[401891203,1768397443963,-500.0,0.00013698,2]
[401891205,1768397443975,-500.0,0.00013698,2]
[401891208,1768397443986,-500.0,0.00013698,2]
[401891211,1768397443997,-500.0,0.00013698,2]
[401891215,1768397444007,-500.0,0.00013698,2]
[401891219,1768397444018,-260.74557216,0.00013698,2]
[401891222,1768397444028,-570.08,0.00013698,2]
[401891226,1768397444038,-570.08,0.00013698,2]
[401891228,1768397444048,-570.08,0.00013698,2]
[401891231,1768397444058,-570.08,0.00013698,2]
[401891233,1768397444070,-570.08,0.00013698,2]
[401891235,1768397444079,-570.08,0.00013698,2]
[401891237,1768397444090,-570.08,0.00013698,2]
[401891239,1768397444099,-570.08,0.00013698,2]
[401891241,1768397444110,-570.08,0.00013698,2]
[401891243,1768397444121,-570.08,0.00013698,2]
[401891245,1768397444130,-570.08,0.00013698,2]
[401891247,1768397444140,-570.08,0.00013698,2]
[401891249,1768397444151,-570.08,0.00013698,2]
[401891251,1768397444161,-570.08,0.00013698,2]
[401891253,1768397444172,-570.08,0.00013698,2]
[401891255,1768397444182,-570.08,0.00013698,2]
[401891257,1768397444192,-570.08,0.00013698,2]
[401891259,1768397444202,-570.08,0.00013698,2]
[401891261,1768397444212,-570.08,0.00013698,2]
[401891263,1768397444224,-570.08,0.00013698,2]
[401891266,1768397444234,-570.08,0.00013698,2]
[401891268,1768397444243,-570.08,0.00013698,2]
[401891270,1768397444254,-570.08,0.00013698,2]
[401891272,1768397444264,-570.14825894,0.00013698,2]
[401891274,1768397444274,-504.29229129,0.00013698,2]
[401891276,1768397444284,-500.0,0.00013698,2]
[401891278,1768397444294,-500.0,0.00013698,2]
[401891280,1768397444304,-500.0,0.00013698,2]
[401891282,1768397444314,-559.52204836,0.00013698,2]
[401891284,1768397444324,-500.0,0.00013698,2]
[401891286,1768397444334,-500.0,0.00013698,2]
[401891288,1768397444344,-500.0,0.00013698,2]
[401891290,1768397444354,-500.0,0.00013698,2]
[401891292,1768397444363,-550.39437847,0.00013698,2]
[401891294,1768397444374,-500.0,0.00013698,2]
[401891296,1768397444384,-500.0,0.00013698,2]
[401891298,1768397444394,-500.0,0.00013698,2]
[401891300,1768397444403,-500.0,0.00013698,2]
[401891302,1768397444413,-500.0,0.00013698,2]
[401891304,1768397444422,-500.0,0.00013698,2]
[401891306,1768397444432,-509.06636441,0.00013698,2]
[401891308,1768397444441,-149071.4739448,0.00013699,2]
[401891310,1768397444450,-1321.2655534,0.00013699,2]
[401891312,1768397444459,-1000.0,0.00013699,2]
[401891314,1768397444469,-2258.255079,0.00013699,2]
[401891316,1768397444480,-500.0,0.00013699,2]
[401891318,1768397444490,-500.0,0.00013699,2]
[401891320,1768397444499,-500.0,0.00013699,2]
[401891322,1768397444509,-526.2087109,0.00013699,2]
[401891324,1768397444518,-500.0,0.00013699,2]
[401891326,1768397444528,-500.0,0.00013699,2]
[401891328,1768397444538,-500.0,0.00013699,2]
[401891330,1768397444547,-500.0,0.00013699,2]
[401891332,1768397444557,-500.0,0.00013699,2]
[401891334,1768397444567,-500.0,0.00013699,2]
[401891336,1768397444577,-500.0,0.00013699,2]
[401891338,1768397444587,-500.0,0.00013699,2]
[401891340,1768397444598,-500.0,0.00013699,2]
[401891342,1768397444612,-413.79090585,0.00013699,2]
[401891344,1768397444622,-500.0,0.00013699,2]
[401891346,1768397444632,-500.0,0.00013699,2]
[401891348,1768397444643,-500.0,0.00013699,2]
[401891350,1768397444652,-252.90578758,0.00013699,2]
[401891352,1768397444662,-500.0,0.00013699,2]
[401891354,1768397444672,-370.92368598,0.00013699,2]
[401891356,1768397444683,-301.86126485,0.00013699,2]
[401891358,1768397444693,-500.0,0.00013699,2]
[401891360,1768397444703,-500.0,0.00013699,2]
[401891362,1768397444714,-500.0,0.00013699,2]
[401891364,1768397444723,-500.0,0.00013699,2]
[401891366,1768397444732,-500.0,0.00013699,2]
[401891368,1768397444742,-500.0,0.00013699,2]
[401891370,1768397444751,-500.64767098,0.00013699,2]
[401891372,1768397444761,-500.0,0.00013699,2]
[401891374,1768397444771,-500.0,0.00013699,2]
[401891376,1768397444780,-504.50322617,0.00013699,2]
[401891378,1768397444790,-500.0,0.00013699,2]
[401891380,1768397444799,-500.0,0.00013699,2]
[401891382,1768397444808,-500.0,0.00013699,2]
[401891384,1768397444818,-500.28466628,0.00013699,2]
[401891386,1768397444827,-500.0,0.00013699,2]
[401891388,1768397444837,-500.0,0.00013699,2]
[401891390,1768397444847,-500.0,0.00013699,2]
[401891392,1768397444856,-500.0,0.00013699,2]
[401891394,1768397444866,-500.0,0.00013699,2]
[401891396,1768397444875,-500.0,0.00013699,2]
[401891398,1768397444885,-500.0,0.00013699,2]
[401891400,1768397444896,-500.0,0.00013699,2]
[401891402,1768397444905,-506.34451005,0.00013699,2]
[401891404,1768397444915,-500.0,0.00013699,2]
[401891406,1768397444925,-500.0,0.00013699,2]
[401891408,1768397444935,-500.0,0.00013699,2]
[401891410,1768397444944,-500.0,0.00013699,2]
[401891413,1768397444954,-500.0,0.00013699,2]
[401891415,1768397444963,-500.0,0.00013699,2]
[401891416,1768397444972,-500.0,0.00013699,2]
[401891418,1768397444983,-500.0,0.00013699,2]
[401891420,1768397444992,-443.99780341,0.00013699,2]
[401891422,1768397445002,-500.0,0.00013699,2]
[401891425,1768397445012,-500.91728774,0.00013699,2]
[401891427,1768397445021,-501.74975073,0.00013699,2]
[401891428,1768397445031,-500.0,0.00013699,2]
[401891430,1768397445040,-500.0,0.00013699,2]
[401891432,1768397445050,-500.0,0.00013699,2]
[401891434,1768397445059,-500.0,0.00013699,2]
[401891437,1768397445069,-500.0,0.00013699,2]
[401891439,1768397445079,-500.0,0.00013699,2]
[401891440,1768397445088,-500.0,0.00013699,2]
[401891442,1768397445098,-500.0,0.00013699,2]
[401891444,1768397445108,-500.0,0.00013699,2]
[401891447,1768397445118,-500.0,0.00013699,2]
[401891448,1768397445127,-500.0,0.00013699,2]
[401891451,1768397445137,-501.1212268,0.00013699,2]
[401891453,1768397445147,-194.2006467,0.00013699,2]
[401891455,1768397445156,-433.32498894,0.00013699,2]
[401891457,1768397445165,-10000.0,0.00013735,2]
[401891459,1768397445175,-10000.0,0.00013735,2]
[401891461,1768397445185,-4343.48,0.00013735,2]
[401891463,1768397445195,-1549.64,0.00013763,2]
[401891465,1768397445204,-1000.0,0.00013821,2]
[401891467,1768397445213,-1000.0,0.00013821,2]
[401891468,1768397445222,-503.63165228,0.00013821,2]
[401891470,1768397445233,-1000.0,0.00013821,2]
[401891472,1768397445243,-386.78841051,0.00013821,2]
[401891474,1768397445254,-284.00644743,0.00013821,2]
[401891476,1768397445264,-1000.0,0.00013821,2]
[401891479,1768397445274,-1002.88869488,0.00013821,2]
[401891481,1768397445283,-1000.0,0.00013821,2]
[401891483,1768397445293,-1000.0,0.00013821,2]
[401891484,1768397445302,-440.24648614,0.00013821,2]
[401891486,1768397445311,-1015.29551893,0.00013821,2]
[401891488,1768397445320,-1000.0,0.00013821,2]
[401891491,1768397445329,-1000.0,0.00013821,2]
[401891493,1768397445338,-1000.0,0.00013821,2]
[401891495,1768397445347,-1000.0,0.00013821,2]
[401891497,1768397445357,-1000.0,0.00013821,2]
[401891499,1768397445365,-1000.0,0.00013821,2]
[401891501,1768397445374,-1000.0,0.00013821,2]
[401891503,1768397445383,-1000.0,0.00013821,2]
[401891505,1768397445393,-1000.0,0.00013821,2]
[401891507,1768397445402,-169.06993919,0.00013821,2]
[401891509,1768397445412,-1000.0,0.00013821,2]
[401891511,1768397445421,-1000.0,0.00013821,2]
[401891513,1768397445430,-1000.0,0.00013821,2]
[401891515,1768397445440,-1000.0,0.00013821,2]
[401891517,1768397445449,-1000.0,0.00013821,2]
[401891519,1768397445458,-1000.0,0.00013821,2]
[401891521,1768397445468,-1000.0,0.00013821,2]
[401891523,1768397445477,-1000.0,0.00013821,2]
[401891525,1768397445487,-1003.01901965,0.00013821,2]
[401891527,1768397445496,-502.07442824,0.00013821,2]
[401891529,1768397445506,-424.36340331,0.00013821,2]
[401891531,1768397445516,-1000.0,0.00013821,2]
[401891533,1768397445525,-1000.0,0.00013821,2]
[401891535,1768397445535,-1000.0,0.00013821,2]
[401891537,1768397445545,-1000.0,0.00013821,2]
[401891539,1768397445555,-604.03491902,0.00013821,2]
[401891541,1768397445565,-1000.0,0.00013821,2]
[401891543,1768397445575,-1000.0,0.00013821,2]
[401891545,1768397445584,-1000.0,0.00013821,2]
[401891547,1768397445595,-446.5684735,0.00013821,2]
[401891549,1768397445606,-344.64451203,0.00013821,2]
[401891551,1768397445615,-3547.38904524,0.00013933,2]
[401891553,1768397445625,-150.15988072,0.00013973,2]
[401891556,1768397445635,-1152.0,0.00013973,2]
[401891557,1768397445647,-1152.0,0.00013973,2]
[401891559,1768397445656,-1333.0,0.00013973,2]
[401891561,1768397445667,-600.0,0.00014221,2]
[401891563,1768397445676,-1460.52,0.00014246,2]
[401891565,1768397445685,-1000.0,0.00014247,2]
[401891567,1768397445695,-1000.0,0.00014247,2]
[401891569,1768397445703,-1000.0,0.00014247,2]
[401891571,1768397445713,-685.95842189,0.00014247,2]
[401891573,1768397445722,-1000.0,0.00014247,2]
[401891575,1768397445731,-500.73561513,0.00014247,2]
[401891578,1768397445740,-501.43010395,0.00014247,2]
[401891580,1768397445749,-1000.0,0.00014247,2]
[401891582,1768397445758,-1000.0,0.00014247,2]
[401891584,1768397445767,-919.62973898,0.00014247,2]
[401891586,1768397445776,-1000.0,0.00014247,2]
[401891588,1768397445785,-1003.83285644,0.00014247,2]
[401891590,1768397445795,-1000.0,0.00014247,2]
[401891592,1768397445804,-250.0,0.00014247,2]
[401891594,1768397445813,-501.04290038,0.00014247,2]
[401891596,1768397445822,-500.65603222,0.00014247,2]
[401891599,1768397445832,-1000.0,0.00014247,2]
[401891601,1768397445841,-841.41978725,0.00014247,2]
[401891603,1768397445851,-1000.0,0.00014247,2]
[401891605,1768397445860,-1000.0,0.00014247,2]
[401891607,1768397445870,-1001.28209032,0.00014247,2]
[401891609,1768397445879,-1000.0,0.00014247,2]
[401891611,1768397445888,-500.31646223,0.00014247,2]
[401891613,1768397445898,-1000.0,0.00014247,2]
[401891615,1768397445908,-1000.0,0.00014247,2]
[401891617,1768397445917,-1001.31706943,0.00014247,2]
[401891619,1768397445926,-500.62157755,0.00014247,2]
[401891621,1768397445935,-1000.0,0.00014247,2]
[401891623,1768397445944,-1000.0,0.00014247,2]
[401891625,1768397445954,-1000.0,0.00014247,2]
[401891627,1768397445964,-1000.0,0.00014247,2]
[401891629,1768397445973,-1000.0,0.00014247,2]
[401891631,1768397445982,-193.53352259,0.00014247,2]
[401891633,1768397445992,-1003.87539742,0.00014247,2]
[401891635,1768397446002,-501.21795351,0.00014247,2]
[401891637,1768397446011,-490.12767117,0.00014247,2]
[401891639,1768397446021,-501.82501982,0.00014247,2]
[401891641,1768397446030,-1000.0,0.00014247,2]
[401891643,1768397446040,-1000.0,0.00014247,2]
[401891645,1768397446049,-1000.0,0.00014247,2]
[401891647,1768397446059,-1000.0,0.00014247,2]
[401891649,1768397446068,-1087.16663197,0.00014247,2]
[401891651,1768397446078,-990.87296502,0.00014247,2]
[401891653,1768397446088,-1000.0,0.00014247,2]
[401891655,1768397446098,-1000.0,0.00014247,2]
[401891657,1768397446107,-1000.0,0.00014247,2]
[401891659,1768397446116,-1000.0,0.00014247,2]
[401891661,1768397446126,-1000.0,0.00014247,2]
[401891663,1768397446137,-1000.0,0.00014247,2]
[401891665,1768397446147,-1000.0,0.00014247,2]
[401891667,1768397446156,-343.96245491,0.00014247,2]
[401891669,1768397446165,-1000.0,0.00014247,2]
[401891671,1768397446174,-1001.20972535,0.00014247,2]
[401891673,1768397446184,-1000.0,0.00014247,2]
[401891675,1768397446193,-501.3857634,0.00014247,2]
[401891677,1768397446202,-1000.0,0.00014247,2]
[401891679,1768397446211,-1000.0,0.00014271,2]
[401891681,1768397446221,-244.0,0.00014271,2]
[401891683,1768397446230,-9143.188796,0.00014271,7]
[401891685,1768397446239,-1323.6172376,0.00014271,2]
[401891687,1768397446249,-3839.55852153,0.00014321,2]
[401891689,1768397446258,-1348.98491417,0.00014368,2]
[401891691,1768397446268,-1500.0,0.00014368,2]
[401891693,1768397446277,-1003.76788333,0.00014368,2]
[401891695,1768397446286,-1022.04357159,0.00014368,2]
[401891697,1768397446295,-502.68632401,0.00014368,2]
[401891699,1768397446305,-822.79494335,0.00014368,2]
[401891701,1768397446315,-1500.0,0.00014368,2]
[401891703,1768397446324,-1500.0,0.00014368,2]
[401891705,1768397446333,-1500.0,0.00014368,2]
[401891707,1768397446343,-453.04414217,0.00014368,2]
[401891709,1768397446352,-1500.0,0.00014368,2]
[401891711,1768397446361,-153.79187063,0.00014368,2]
[401891713,1768397446370,-1500.0,0.00014368,2]
[401891715,1768397446380,-1623.81068567,0.00014368,2]